Cogmind - Beta 16 @@@ ROGUE MODE // 2025.11.11 @ 07:50:23 Player: Demo Result: Destroyed by Executioner with Helical Railgun Performance ------------- Evolutions (8) 4000 Regions Visited (28) 5600 Robots Destroyed (139) 695 Value Destroyed (9316) 9316 Prototype IDs (226) 4520 Alien Tech Used (2) 400 Bonus (10406) 10406 TOTAL SCORE: 34937 Bonus ------- Pacifist 270 High Alert Combat Kills 2199 Follower Combat Kills 1310 Registered with UFD 300 Met Optimus in HQ 500 Met Data Miner 300 Used Data Conduit 3000 Met Zhirov 300 Met Warlord at Base 500 MAIN.C Attacked Warlord 500 Pursued by Intercept 1500 Met Optimus at Protoforge 1000 Friendly Fire -1273 Cogmind --------- Core Integrity 0/1450 Matter 94/300 Energy 346/350 System Corruption 38% Temperature Cool (0) Movement Immobile (Siege) Location -2/Protoforge Parts ------- > --- POWER (1) -------- Improved Quantum Reactor > --- PROPULSION (6) --- Enhanced Biometal Leg Heavy Shield Leg Experimental Biometal Leg Experimental VSS Leg Experimental VSS Leg > --- UTILITY (12) ----- Experimental Optical Array Experimental Targeting Computer Experimental Core Analyzer Experimental Armor Integrity Analyzer Experimental Kinecellerator Experimental Reaction Control System Makeshift Core Shielding Makeshift Medium Armor Plating Makeshift Heavy Armor Plating Centrium Light Armor Plating > --- WEAPON (4) ------- Helical Railgun Helical Railgun Concept XC Strikerail > --- INVENTORY (5) ---- Improved Quantum Reactor Shield Leg Heavy Shield Leg Railgun Peak State ------------ > --- POWER ------------ Improved Quantum Reactor > --- PROPULSION ------- Enhanced Biometal Leg Experimental Biometal Leg Experimental Biometal Leg Experimental VSS Leg Experimental VSS Leg Experimental VSS Leg > --- UTILITY ---------- Light Humpback Experimental Optical Array Experimental Targeting Computer Experimental Core Analyzer Experimental Armor Integrity Analyzer Experimental Kinecellerator Advanced Phase Shifter Makeshift Core Shielding Makeshift Medium Armor Plating Centrium Light Armor Plating Advanced Hacking Suite > --- WEAPON ----------- Helical Railgun Concept XC Strikerail Concept XC Strikerail Concept XC Strikerail > --- INVENTORY -------- Improved Quantum Reactor Enhanced Biometal Leg Enhanced Biometal Leg Enhanced Biometal Leg Experimental Heat Sink Experimental Kinecellerator Experimental Actuator Array Heavy Armor Plating Railgun Railgun Helical Railgun Improved Plasma Cutter CPS Tube Kinetic Spear UFD Drillbomb [Rating: 220] Favorites ----------- Power Heavy Antimatter Reactor Engine F-cell Engine Power Core Neutrino Core Reactor Heavy Antimatter Reactor Propulsion Cooled Nuclear Pulse Thruster Treads Medium Treads Leg Myomer Leg Wheel Centrium Wheel Hover Unit Improved Gyrokinetic Inverter Flight Unit Cooled Nuclear Pulse Thruster Utility Advanced Weight Redist. System Device Advanced Weight Redist. System Storage Medium Storage Unit Processor Improved Melee Analysis Suite Hackware Advanced Hacking Suite Protection Experimental Propulsion Shielding Weapon Katana Energy Gun Phase Gun Energy Cannon Vortex Driver Ballistic Gun Concept XC Strikerail Ballistic Cannon Linear Accelerator Launcher Mini Grenade Launcher Special Weapon CPS Tube Slashing Weapon Katana Piercing Weapon Kinetic Spear Build | -11 -10 -10 -10 -9 -9 -6 -6 -6 -6 -6 -6 -5 -5 -5 -5 -5 -4 -4 -4 -4 -4 -4 -4 -3 -3 -2 -2 -2 ------- Run | Yrd Mat Min Sub Rec Scr Fac Was Fac Low Low Dat Pro Fac Upp Upp Zhi Pro Fac Was Fac Upp Upp War Pro Res Res Qua Frg Slots Evolved 16 | . . . . . . 8 . . . . . . 2 . . . . 2 . . . . . . 2 2 . . Power . | . . . . . . . . . . . . . . . . . . . . . . . . . . . . . Propulsion 4 | . . . . . . 3 . . . . . . . . . . . 1 . . . . . . . . . . Utility 10 | . . . . . . 5 . . . . . . 2 . . . . 1 . . . . . . 2 . . . Weapon 2 | . . . . . . . . . . . . . . . . . . . . . . . . . . 2 . . Parts Attached 186 | 2 . 2 . . 9 12 . 10 1 1 1 1 6 1 1 6 1 2 4 5 1 . 4 1 34 41 1 39 Power 17 | . . . . . 3 2 . 1 . . . 1 . . 1 1 . . . . . . . 1 2 3 . 2 Engine 7 | . . . . . 3 2 . 1 . . . 1 . . . . . . . . . . . . . . . . Core 2 | . . . . . . . . . . . . . . . 1 . . . . . . . . . . 1 . . Reactor 8 | . . . . . . . . . . . . . . . . 1 . . . . . . . 1 2 2 . 2 Propulsion 54 | 2 . . . . 3 1 . 5 . 1 . . 2 . . 3 . . . 2 . . 1 . 10 15 1 8 Treads 7 | 2 . . . . . . . . . . . . . . . . . . . . . . . . 2 3 . . Leg 20 | . . . . . . . . . . . . . . . . . . . . . . . . . 4 7 1 8 Wheel 7 | . . . . . . . . . . . . . . . . . . . . . . . . . 2 5 . . Hover 6 | . . . . . . 1 . . . . . . 1 . . . . . . 2 . . . . 2 . . . Flight 14 | . . . . . 3 . . 5 . 1 . . 1 . . 3 . . . . . . 1 . . . . . Utility 86 | . . 2 . . 1 9 . 2 . . . . 4 1 . 2 1 2 3 3 1 . 1 . 19 12 . 23 Device 37 | . . . . . 1 4 . 1 . . . . 1 . . . 1 2 3 2 . . . . 9 6 . 7 Storage 2 | . . . . . . . . . . . . . . . . . . . . . . . . . 1 . . 1 Processor 27 | . . 1 . . . 4 . 1 . . . . 1 . . . . . . 1 1 . 1 . 7 3 . 7 Hackware 8 | . . . . . . 1 . . . . . . 2 1 . 1 . . . . . . . . 1 2 . . Protection 12 | . . 1 . . . . . . . . . . . . . 1 . . . . . . . . 1 1 . 8 Artifact . | . . . . . . . . . . . . . . . . . . . . . . . . . . . . . Weapon 29 | . . . . . 2 . . 2 1 . 1 . . . . . . . 1 . . . 2 . 3 11 . 6 Energy Gun 4 | . . . . . . . . . . . . . . . . . . . . . . . . . . 4 . . Energy Cannon 1 | . . . . . . . . . . . . . . . . . . . . . . . 1 . . . . . Ballistic Gun 13 | . . . . . . . . . . . . . . . . . . . . . . . . . 3 4 . 6 Ballistic Cannon 2 | . . . . . . . . . . . . . . . . . . . . . . . . . . 2 . . Launcher 1 | . . . . . 1 . . . . . . . . . . . . . . . . . . . . . . . Special Weapon 1 | . . . . . . . . . . . . . . . . . . . 1 . . . . . . . . . Impact Weapon . | . . . . . . . . . . . . . . . . . . . . . . . . . . . . . Slashing Weapon 6 | . . . . . 1 . . 2 1 . 1 . . . . . . . . . . . 1 . . . . . Piercing Weapon 1 | . . . . . . . . . . . . . . . . . . . . . . . . . . 1 . . Special Melee Weapon . | . . . . . . . . . . . . . . . . . . . . . . . . . . . . . Unidentified Prototypes 11 | . . . . . . . . 2 . . . . . . . 1 . . . . . . 1 . 1 2 . 4 Parts Lost 80 | . . . 1 2 . . . 3 . 2 2 1 2 2 1 . . . . 2 . . 10 4 8 31 3 6 Power 5 | . . . . . . . . . . . 1 . 1 . . . . . . . . . 1 . . 2 . . Propulsion 28 | . . . . 2 . . . 2 . 2 . 1 . 2 . . . . . . . . 5 1 3 8 1 1 Utility 32 | . . . 1 . . . . 1 . . 1 . 1 . . . . . . 1 . . 2 3 4 13 2 3 Weapon 15 | . . . . . . . . . . . . . . . 1 . . . . 1 . . 2 . 1 8 . 2 Highest Loss Streak 10 | . . . 1 2 . . . 2 . 2 2 1 1 2 1 . . . . 2 . . 10 3 5 10 2 2 To Critical Strikes . | . . . . . . . . . . . . . . . . . . . . . . . . . . . . . Average Backups 4 | . . 2 3 4 4 4 5 4 4 4 4 3 3 4 4 3 4 4 4 4 4 4 4 4 6 6 4 7 Power . | . . . . . . . 1 1 . 1 1 . . . . . . . . . . . . . . . 1 . Propulsion . | . . 2 2 2 . . . . . . . . . . . . . . . . . . . . . . . 1 Utility 1 | . . . 1 2 2 3 3 2 1 1 1 1 1 1 1 1 1 1 1 2 2 2 2 2 1 1 1 2 Weapon . | . . . . . . . . . 1 1 1 1 1 1 1 . . . . . . . . . 2 1 . 1 Tool/Special . | . . . . . . . . . . . . . . . . . . . . . . . . . . . . . Unused Backups 24 | . . . . . 2 . 1 4 2 . . . . . . . . . . . . . . . 2 2 . 11 Power 2 | . . . . . . . . . . . . . . . . . . . . . . . . . 1 . . 1 Propulsion 3 | . . . . . . . . . . . . . . . . . . . . . . . . . . . . 3 Utility 11 | . . . . . 2 . 1 3 1 . . . . . . . . . . . . . . . . 1 . 3 Weapon 6 | . . . . . . . . 1 1 . . . . . . . . . . . . . . . 1 1 . 2 Tool/Special 2 | . . . . . . . . . . . . . . . . . . . . . . . . . . . . 2 Average Slot Usage (%) 80 | . 28 31 56 25 56 83 93 97 100 93 93 85 85 82 80 91 100 92 94 95 94 94 97 17 70 73 48 82 Engine 1 | . . . . . . 5 6 6 6 6 6 5 2 . . . . . . . . . . . . . . . Reactor 2 | . . . . . . . . . . . . . . . . 2 5 5 5 5 5 5 4 . 3 2 . 3 Treads 2 | . 28 28 28 11 . . . . . . . . . . . . . . . . . . . . 6 4 . . Leg 4 | . . . . . . . . . . . . . . . . . . . . . . . . . 8 4 19 23 Wheel 1 | . . . . . . . . . . . . . . . . . . . . . . . . . 1 10 . . Hover 1 | . . . . . . 3 6 2 . . . . 3 5 5 2 . . . 2 5 5 1 . 2 . . . Flight 14 | . . . . . 21 19 20 27 33 26 26 25 19 11 11 20 29 26 26 26 26 26 29 3 . . . . Device 13 | . . . . . 10 18 20 20 20 20 20 13 10 11 11 10 16 19 21 20 17 15 14 . 14 12 3 6 Processor 17 | . . 1 14 14 14 21 20 23 26 26 26 26 27 25 23 21 11 10 10 10 12 15 15 10 10 20 14 19 Hackware 6 | . . . . . . 1 6 2 . . . . 8 14 17 17 17 15 15 15 15 15 14 3 3 4 8 5 Protection 2 | . . 1 13 . . . . . . . . . . . . 1 5 5 5 4 5 5 4 . 3 . . 8 Ballistic Gun 2 | . . . . . . . . . . . . . . . . . . . . . . . . . 8 3 . 12 Launcher 1 | . . . . . 2 6 6 6 6 6 1 4 4 5 3 . . . . . . . . . . . . . Slashing Weapon 4 | . . . . . 7 6 6 6 6 6 11 7 5 5 5 8 11 10 8 5 5 5 8 . . . . . Peak Build Rating 220 | 2 2 4 4 3 14 50 50 63 64 63 64 53 67 66 63 91 94 101 106 115 110 108 123 44 132 167 105 220 Average Rating 88 | 1 2 2 3 1 8 44 50 57 62 60 62 51 59 59 58 77 92 99 103 107 108 108 114 24 106 128 92 179 On Entrance 56 | . 2 2 4 3 1 14 50 50 63 63 61 49 49 66 59 63 91 87 101 104 110 108 108 37 9 132 81 79 Avg Prop Armor Cover (%) 12 | 39 41 39 27 39 . 5 5 5 5 . . . 13 19 19 11 . . . 3 1 1 1 12 8 17 40 28 Naked Turns . | . . . . . . . . . . . . . . . . . . . . . . . . . . . . . Heaviest Build 120 | . . 3 3 . 11 19 18 18 18 17 19 15 15 4 17 25 28 27 29 29 29 24 27 . 62 85 2 120 Greatest Support 166 | 3 3 3 3 3 8 21 21 31 23 29 29 29 25 11 22 40 40 40 40 41 32 41 51 9 75 90 3 166 Greatest Overweight (x) 4 | . . . . . 1 . . . . . . . . . . . . . . . . . . . 3 4 . . Average Overweight (x) . | . . . . . . . . . . . . . . . . . . . . . . . . . 1 . . . Largest Inventory Capacity 25 | 5 5 5 5 5 5 5 5 5 5 5 5 5 5 5 5 5 5 5 5 5 5 5 5 5 10 10 5 25 Average Capacity 6 | 5 5 5 5 5 5 5 5 5 5 5 5 5 5 5 5 5 5 5 5 5 5 5 5 5 9 7 5 11 Most Carried 25 | . 2 3 5 5 5 5 5 5 5 5 5 5 5 5 5 5 5 5 5 5 5 5 5 5 10 10 5 25 Average Carried 5 | . . 2 3 5 4 4 5 4 4 5 5 4 4 5 5 4 5 5 4 5 5 5 4 5 7 6 4 9 Final Capacity 10 | 5 5 5 5 5 5 5 5 5 5 5 5 5 5 5 5 5 5 5 5 5 5 5 5 5 10 5 5 5 Final Carried 10 | . 2 3 5 5 5 5 5 5 5 5 5 4 5 5 5 5 5 5 5 5 5 5 5 5 10 5 5 5 Scrap Suit Usage (%) 11 | . . . . . . . . . . . . . . . . . . . . . . . . . 84 16 . . Parts Cannibalized 2 | . . . . . . . . . . . . . . . . . . . . . . . . . 2 . . . Class Distribution -------------------- 24% | Hacker-Sprinter 20% | Scout 18% | Scavenger-Mutant 11% | Mutant 10% | Hacker-Mutant 10% | Scavenger-Gunner Dominant Class ---------------- Mutant | -10/Materials Mutant | -10/Mines Mutant | -10/Subcaves Mutant | -9/Recycling Mutant | -9/Scraptown Scout | -6/Factory Scout | -6/Waste Scout | -6/Factory Scout | -6/Lower Caves Scout | -6/Lower Caves Scout | -6/Data Miner Sprinter | -5/Proximity Caves Hacker-Mutant | -5/Factory Hacker-Mutant | -5/Upper Caves Hacker-Mutant | -5/Upper Caves Hacker-Sprinter | -5/Zhirov Hacker-Sprinter | -4/Proximity Caves Hacker-Sprinter | -4/Factory Hacker-Sprinter | -4/Waste Hacker-Sprinter | -4/Factory Hacker-Sprinter | -4/Upper Caves Hacker-Sprinter | -4/Upper Caves Hacker-Sprinter | -4/Warlord Mutant | -3/Proximity Caves Scavenger-Mutant | -3/Research Scavenger-Mutant | -2/Research Hacker-Mutant | -2/Quarantine Scavenger-Gunner | -2/Protoforge Resources | -11 -10 -10 -10 -9 -9 -6 -6 -6 -6 -6 -6 -5 -5 -5 -5 -5 -4 -4 -4 -4 -4 -4 -4 -3 -3 -2 -2 -2 ----------- Run | Yrd Mat Min Sub Rec Scr Fac Was Fac Low Low Dat Pro Fac Upp Upp Zhi Pro Fac Was Fac Upp Upp War Pro Res Res Qua Frg Matter Collected 5669 | 220 . 46 18 . 86 190 90 180 20 30 28 . 85 10 10 120 30 20 60 35 25 15 . 41 1210 1186 . 1914 Remotely . | . . . . . . . . . . . . . . . . . . . . . . . . . . . . . Salvage Created 9191 | . . . . . . 263 . 353 75 70 28 37 134 17 258 219 133 . . 43 . 84 . . 1642 2128 . 3707 Parts 396 | . . . . . . 6 . 14 2 3 1 1 7 . 10 1 . . . 1 . 1 . . 88 84 . 177 Haulers Intercepted 5 | . . . . . . 2 . . . . . . . . . . . . . . . . . . 1 2 . . Recyclers Shooed 1 | . . . . . . . . . . . . . . . . . . . . . . . . . 1 . . . Parts Field Recycled . | . . . . . . . . . . . . . . . . . . . . . . . . . . . . . Retrieved Matter . | . . . . . . . . . . . . . . . . . . . . . . . . . . . . . Parts Self-Destructed 22 | . . . 16 . . . . . . 1 . 1 . . 1 . 2 . . . . 1 . . . . . . Prevented 4 | . . . . . . . . . 2 . . 2 . . . . . . . . . . . . . . . . Parts Restored . | . . . . . . . . . . . . . . . . . . . . . . . . . . . . . Kills | -11 -10 -10 -10 -9 -9 -6 -6 -6 -6 -6 -6 -5 -5 -5 -5 -5 -4 -4 -4 -4 -4 -4 -4 -3 -3 -2 -2 -2 ------- Run | Yrd Mat Min Sub Rec Scr Fac Was Fac Low Low Dat Pro Fac Upp Upp Zhi Pro Fac Was Fac Upp Upp War Pro Res Res Qua Frg Combat Hostiles Destroyed 104 | . . . . . . . . 7 . 4 . . 1 . . . . . . . . . . . 17 24 . 51 Melee 9 | . . . . . . . . 2 . . . . 1 . . . . . . . . . . . . 6 . . Guns 79 | . . . . . . . . . . . . . . . . . . . . . . . . . 17 11 . 51 Cannons 3 | . . . . . . . . . . . . . . . . . . . . . . . . . . 3 . . AOE 9 | . . . . . . . . 5 . 4 . . . . . . . . . . . . . . . . . . Classes Destroyed 26 | . . . . . . 2 1 5 1 . . 1 2 . 2 . . . . . . . . . 1 . . 11 Worker 6 | . . . . . . . . 2 . . . . 3 . . . . . . . . . . . 1 . . . Builder 3 | . . . . . . . . . . . . . . . . . . . . . . . . . 1 2 . . Tunneler 4 | . . . . . . . . . . . . . 1 . . . . . . . . . . . 1 2 . . Hauler 5 | . . . . . . 2 . . . . . . . . . . . . . . . . . . 1 2 . . Recycler 2 | . . . . . . . . . . . . . . . . . . . . . . . . . 2 . . . Minesweeper 2 | . . . . . . . . . . . . 1 . . 1 . . . . . . . . . . . . . Mechanic 2 | . . . . . . . . . . . . . . . . . . . . . . . . . . . . 2 Operator 1 | . . . . . . 1 . . . . . . . . . . . . . . . . . . . . . . Drone 8 | . . . . . . . . . . . . . . . . . . . . . . . . . . . . 8 Watcher 4 | . . . . . . . . 2 . . . . . . . . . . . 1 . . . . . . . 1 Swarmer 8 | . . . . . . . . . . 4 . . . . . . . . . . . . . . . . . 4 Grunt 20 | . . . . . . . . 4 . . . . . . . . . . . . . . . . 4 9 . 3 Brawler 2 | . . . . . . . . . . . . . . . . . . . . . . . . . . . . 2 Duelist 3 | . . . . . . . . . . . . . . . . . . . . . . . . . . . . 3 Protector 1 | . . . . . . . . . . . . . . . . . . . . . . . . . . . . 1 Sentry 4 | . . . . . . . . 2 . . . . . . . . . . . . . . . . . 1 . 1 Hunter 9 | . . . . . . . . 1 . . . . . . . . . . . . . . . . 2 4 . 2 Programmer 21 | . . . . . . . . . . . . . 1 . . . . . . . . . . . 9 6 . 5 Behemoth 1 | . . . . . . . . . . . . . . . . . . . . . . . . . . . . 1 Hotshot 3 | . . . . . . . . . . . . . . . . . . . . . . . . . . . . 3 Decapitator 2 | . . . . . . . . . . . . . . . . . . . . . . . . . . . . 2 Tracker 7 | . . . . . . . . . . . . . . . . . . . . . . . . . 1 2 . 4 Combat Programmer 7 | . . . . . . . . . . . . . . . . . . . . . . . . . 1 2 . 4 Striker 3 | . . . . . . . . . . . . . . . . . . . . . . . . . . . . 3 Executioner 4 | . . . . . . . . . . . . . . . . . . . . . . . . . . . . 4 Alpha 7 1 | . . . . . . . . . . . . . . . . . . . . . . . . . . . . 1 Elite 2 | . . . . . . . . . . . . . . . . . . . . . . . . . . . . 2 Scrapoid 1 | . . . . . . . . . . . . . . . . . . . . . . . . . . . . 1 Decomposer 2 | . . . . . . . . . . 1 . . . 1 . . . . . . . . . . . . . . Packrat 2 | . . . . . . . . . . . . . . . 2 . . . . . . . . . . . . . Samaritan 2 | . . . . . . . . . . . . . . . 2 . . . . . . . . . . . . . Wasp 1 | . . . . . . . 1 . . . . . . . . . . . . . . . . . . . . . Savage 1 | . . . . . . . . . 1 . . . . . . . . . . . . . . . . . . . Best Kill Streak 22 | . . . . . . 1 . 3 . 4 1 1 4 . 1 . . . . 1 . . . . 6 8 . 22 Combat Bots Only 20 | . . . . . . . . 2 . 4 . . 1 . . . . . . . . . . . 3 6 . 20 Max Kills in Single Turn 3 | . . . . . . 1 1 3 1 3 1 1 1 1 1 . . . . 1 . . . . 2 2 . 3 Gunslinging 1 | . . . . . . . . . . . . . . . . . . . . . . . . . 1 . . 1 Exploded 3 | . . . . . . . . 2 . 3 . . . . . . . . . . . . . . . . . . Melee 1 | . . . . . . . . 1 . . . . 1 . . . . . . . . . . . . 1 . . Uniques/NPCs Destroyed 1 | . . . . . . . . . . . 1 . . . . . . . . . . . . . . . . . Data Miner (-6/Data Miner) Combat | -11 -10 -10 -10 -9 -9 -6 -6 -6 -6 -6 -6 -5 -5 -5 -5 -5 -4 -4 -4 -4 -4 -4 -4 -3 -3 -2 -2 -2 -------- Run | Yrd Mat Min Sub Rec Scr Fac Was Fac Low Low Dat Pro Fac Upp Upp Zhi Pro Fac Was Fac Upp Upp War Pro Res Res Qua Frg Hostile Shots Fired 1291 | . 30 . 46 12 . . . 39 . 10 6 11 14 4 12 . 27 16 . 9 . 21 69 55 202 483 84 141 Missed 515 | . 13 . 23 4 . . . 17 . 4 4 7 9 1 8 . 14 12 . 5 . 13 24 23 84 167 43 40 Hits 776 | . 17 . 23 8 . . . 22 . 6 2 4 5 3 4 . 13 4 . 4 . 8 45 32 118 316 41 101 Melee 6 | . . . . . . . . . . . . . . . . . . . . . . . 3 . . 1 . 2 Projectile 770 | . 17 . 23 8 . . . 22 . 6 2 4 5 3 4 . 13 4 . 4 . 8 42 32 118 315 41 99 AOE 3 | . . . . . . . . . . . . . . . . . . . . . . . . . . . . 3 Critical Strikes 39 | . . . . . . . . . . . . . 1 . . . . . . . . . 2 3 9 14 2 8 Actively Blocked 3 | . . . . . . . . . . . . . . . . . . . . . . . 1 . . . . 2 Part Disruptions 2 | . . . . . . . . . . . . . . . . . . . . . . . . . . 1 . 1 Damage Taken 16986 | . 138 . 257 116 . . . 329 . 107 91 76 115 57 32 . 214 42 . 86 . 210 853 524 2545 6788 966 3440 Core 2634 | . 39 . 77 30 . . . 91 . 26 16 39 27 . . . 49 18 . 21 . 63 265 398 69 662 179 565 Absorbed by Shields . | . . . . . . . . . . . . . . . . . . . . . . . . . . . . . Redirected to Shielding 591 | . . . . . . . . . . . . . . . . . 37 21 . . . 116 80 . . 103 . 234 Ignored by Resistances 733 | . . . . . . . . . . . . . . . . . . . . . . . . . 72 661 . . Regen/Repaired (Parts) 187 | . . . . . . . . 25 . . . . 24 . . . . . 31 58 . . 41 . 8 . . . Core Remaining (%) 73 | 100 . . . . 41 . . . . . . 79 . . . . 92 . . . . . . 33 94 . . . Volleys Fired 261 | . . . . . . . 10 7 . 5 . . . . . . . . . . . . . . 84 63 . 92 Largest 4 | . . . . . . . 1 1 . 1 . . . . . . . . . . . . . . 2 4 . 4 Hottest 183 | . . . . . . . 30 30 . 30 . . . . . . . . . . . . . . 80 183 . 140 Shots Fired 621 | . . . . . . . 10 7 . 5 . . . . . . . . . . . . . . 167 114 . 318 Gun 569 | . . . . . . . . . . . . . . . . . . . . . . . . . 167 84 . 318 Cannon 30 | . . . . . . . . . . . . . . . . . . . . . . . . . . 30 . . Launcher 22 | . . . . . . . 10 7 . 5 . . . . . . . . . . . . . . . . . . Special . | . . . . . . . . . . . . . . . . . . . . . . . . . . . . . Kinetic 591 | . . . . . . . . . . . . . . . . . . . . . . . . . 167 106 . 318 Thermal . | . . . . . . . . . . . . . . . . . . . . . . . . . . . . . Explosive 22 | . . . . . . . 10 7 . 5 . . . . . . . . . . . . . . . . . . Electromagnetic 8 | . . . . . . . . . . . . . . . . . . . . . . . . . . 8 . . Robot Hit Streak 60 | . . . . . . . 2 3 . 2 . . . . . . . . . . . . . . 12 60 . 21 Robot Miss Streak 5 | . . . . . . . 1 . . 1 . . . . . . . . . . . . . . 5 3 . 3 Penetration Max 2 | . . . . . . . . . . . . . . . . . . . . . . . . . 2 1 . 2 Secondary Targets 20 | . . . . . . . . . . . . . . . . . . . . . . . . . 1 . . 19 Max Gunslinging Chain 2 | . . . . . . . . . . . . . . . . . . . . . . . . . 1 . . 2 Shots Hit Robots 508 | . . . . . . 18 2 9 3 3 1 1 7 1 7 11 3 . . 1 . 2 . . 97 108 . 234 Core Hits 268 | . . . . . . 5 1 21 1 6 . 1 3 . 1 1 2 . . 1 . 1 . . 45 65 . 114 Critical Kills 13 | . . . . . . . . . . . . . . . . . . . . . . . . . 6 . . 7 Critical Parts Destroyed 21 | . . . . . . . . . . . . . . . . . . . . . . . . . 12 1 . 8 Critical Strikes 45 | . . . . . . . . 1 . . . . . . . . . . . . . 1 . . 18 9 . 16 Destroy 35 | . . . . . . . . . . . . . . . . . . . . . . . . . 18 1 . 16 Blast 2 | . . . . . . . . . . . . . . . . . . . . . . . . . . 2 . . Corrupt 1 | . . . . . . . . . . . . . . . . . . . . . . . . . . 1 . . Sever 2 | . . . . . . . . 1 . . . . . . . . . . . . . 1 . . . . . . Impale 5 | . . . . . . . . . . . . . . . . . . . . . . . . . . 5 . . Melee Attacks 245 | . . . . . . 21 . 42 11 11 5 8 26 6 10 11 23 5 . 18 . 15 . . . 30 2 1 Impact . | . . . . . . . . . . . . . . . . . . . . . . . . . . . . . Slashing 212 | . . . . . . 21 . 42 11 11 5 8 26 6 10 11 23 5 . 18 . 15 . . . . . . Piercing 33 | . . . . . . . . . . . . . . . . . . . . . . . . . . 30 2 1 Sneak Attacks 21 | . . . . . . 3 . 1 3 1 1 1 4 1 6 . . . . . . . . . . . . . Combat Hostiles . | . . . . . . . . . . . . . . . . . . . . . . . . . . . . . Follow-up Attacks 2 | . . . . . . . . . . . . . 1 . . 1 . . . . . . . . . . . . Damage Inflicted 24940 | . . . 14 . . 602 893 1035 163 429 96 115 479 84 544 921 218 . . 59 . 132 . . 3498 4448 . 11210 Guns 17515 | . . . . . . . . . . . . . . . . . . . . . . . . . 3498 2811 . 11206 Cannons 781 | . . . . . . . . . . . . . . . . . . . . . . . . . . 781 . . Explosions 1981 | . . . . . . . 893 738 . 350 . . . . . . . . . . . . . . . . . . Melee 4588 | . . . . . . 602 . 297 163 79 96 115 479 84 544 921 218 . . 59 . 132 . . . 799 . . Ramming 75 | . . . 14 . . . . . . . . . . . . . . . . . . . . . . 57 . 4 Kinetic 18198 | . . . . . . . . . . . . . . . . . . . . . . . . . 3498 3494 . 11206 Thermal . | . . . . . . . . . . . . . . . . . . . . . . . . . . . . . Explosive 1981 | . . . . . . . 893 738 . 350 . . . . . . . . . . . . . . . . . . Electromagnetic 98 | . . . . . . . . . . . . . . . . . . . . . . . . . . 98 . . Impact . | . . . . . . . . . . . . . . . . . . . . . . . . . . . . . Slashing 3789 | . . . . . . 602 . 297 163 79 96 115 479 84 544 921 218 . . 59 . 132 . . . . . . Piercing 799 | . . . . . . . . . . . . . . . . . . . . . . . . . . 799 . . Highest Corruption 38 | . . . . . . . . . . . . . . . . . . . . 1 1 1 1 . 15 21 22 38 Average Corruption 14 | . . . . . . . . . . . . . . . . . . . . 1 1 1 1 . 9 12 21 25 Corruption Purged . | . . . . . . . . . . . . . . . . . . . . . . . . . . . . . Corruption Blocked . | . . . . . . . . . . . . . . . . . . . . . . . . . . . . . Effects 135 | . . . . . . . . . . . . . . . . . . . . . . 4 . . 28 33 9 61 Message Errors 23 | . . . . . . . . . . . . . . . . . . . . . . . . . 3 6 1 13 Matter Fused 25 | . . . . . . . . . . . . . . . . . . . . . . 2 . . 6 7 . 10 Heat Flow Errors 9 | . . . . . . . . . . . . . . . . . . . . . . . . . 4 2 1 2 Energy Discharges 14 | . . . . . . . . . . . . . . . . . . . . . . . . . 3 4 1 6 Parts Rejected 5 | . . . . . . . . . . . . . . . . . . . . . . 1 . . 1 1 1 1 Parts Fused 1 | . . . . . . . . . . . . . . . . . . . . . . 1 . . . . . . Data Loss (minor) 17 | . . . . . . . . . . . . . . . . . . . . . . . . . 4 6 1 6 Data Loss (major) 6 | . . . . . . . . . . . . . . . . . . . . . . . . . . 1 1 4 Misfires 4 | . . . . . . . . . . . . . . . . . . . . . . . . . 3 1 . . Alerts 4 | . . . . . . . . . . . . . . . . . . . . . . . . . 1 2 . 1 Misdirections 5 | . . . . . . . . . . . . . . . . . . . . . . . . . . 1 3 1 Weapon Failures 22 | . . . . . . . . . . . . . . . . . . . . . . . . . 3 2 . 17 Overload Shots . | . . . . . . . . . . . . . . . . . . . . . . . . . . . . . Overflow Damage 993 | . . . . . . 30 26 15 . . 36 . 152 75 380 228 42 . . . . . . . . 9 . . Projectiles 7 | . . . . . . . . . . . . . . . . . . . . . . . . . . 7 . . Explosions 35 | . . . . . . . 26 9 . . . . . . . . . . . . . . . . . . . . Melee 951 | . . . . . . 30 . 6 . . 36 . 152 75 380 228 42 . . . . . . . . 2 . . Knockbacks 9 | . . . . . . . . . . . . . . . . . . . . . . . . . . 9 . . Impact . | . . . . . . . . . . . . . . . . . . . . . . . . . . . . . Kinetic 7 | . . . . . . . . . . . . . . . . . . . . . . . . . . 7 . . Secondary 2 | . . . . . . . . . . . . . . . . . . . . . . . . . . 2 . . Self-Inflicted Damage 44 | . . . 6 . . . . . . 11 . . . . . . . . . . . . . . . 27 . . Shots 1 | . . . . . . . . . . 1 . . . . . . . . . . . . . . . . . . Rammed 11 | . . . 5 . . . . . . . . . . . . . . . . . . . 2 . . 4 . . Targets Rammed 12 | . . . 5 . . . . . . . . . . . . . . . . . . . 2 . . 4 . 1 Kicked 1 | . . . . . . . . . . . . . . . . . . . . . . . . . . . . 1 Crushed . | . . . . . . . . . . . . . . . . . . . . . . . . . . . . . Highest Temperature 328 | . . . . . . . . 5 . . . . . . . . 175 . . 180 . 88 35 328 211 153 181 179 Average Temperature 72 | . . . . . . . . 5 . . . . . . . . 108 . . 99 . 37 14 150 89 41 123 111 Received Heat Transfer 1900 | . . . 72 45 . . . 78 . 9 . 18 9 9 12 . 9 . . . . 27 87 495 235 576 18 201 Effects 1 | . . . . . . . . . . . . . . . . . . . . . . . . 1 . . . . Energy Bleed 1 | . . . . . . . . . . . . . . . . . . . . . . . . 1 . . . . Siege Activations . | . . . . . . . . . . . . . . . . . . . . . . . . . . . . . Martial Activations . | . . . . . . . . . . . . . . . . . . . . . . . . . . . . . Shielding Activations 1 | . . . . . . . . . . . . . . . . . . . . . . . . . . . . 1 Total Turns 17 | . . . . . . . . . . . . . . . . . . . . . . . . . . . . 17 Longest Duration 17 | . . . . . . . . . . . . . . . . . . . . . . . . . . . . 17 Robots Disrupted . | . . . . . . . . . . . . . . . . . . . . . . . . . . . . . Combat Hostiles . | . . . . . . . . . . . . . . . . . . . . . . . . . . . . . Robots Corrupted 2 | . . . . . . . . . . . . . . . . . . . . . . . . . . 2 . . Combat Hostiles 2 | . . . . . . . . . . . . . . . . . . . . . . . . . . 2 . . Parts Fried 7 | . . . . . . . . . . . . . . . . . . . . . . . . . . 7 . . Impact Corruptions 2 | . . . . . . . . . . . . . . . . . . . . . . . . . . 2 . . Robots Melted . | . . . . . . . . . . . . . . . . . . . . . . . . . . . . . Combat Hostiles . | . . . . . . . . . . . . . . . . . . . . . . . . . . . . . Parts Melted 1 | . . . . . . . . . . . . . . . . . . . . . . . . . . . . 1 Heat Transferred . | . . . . . . . . . . . . . . . . . . . . . . . . . . . . . Parts Sabotaged 9 | . . . . . . . . . . . . . . . . . . . . . . . 9 . . . . . Parts Stolen . | . . . . . . . . . . . . . . . . . . . . . . . . . . . . . Parts Stripped . | . . . . . . . . . . . . . . . . . . . . . . . . . . . . . Power Chain Reactions 4 | . . . . . . . . . . . . . . . . . . . . . . . . . . 4 . . Alert | -11 -10 -10 -10 -9 -9 -6 -6 -6 -6 -6 -6 -5 -5 -5 -5 -5 -4 -4 -4 -4 -4 -4 -4 -3 -3 -2 -2 -2 ------- Run | Yrd Mat Min Sub Rec Scr Fac Was Fac Low Low Dat Pro Fac Upp Upp Zhi Pro Fac Was Fac Upp Upp War Pro Res Res Qua Frg Maximum Alert Level 4 | . . . . . . . . 4 . . . . . . . . . . . 2 . . . . 1 3 2 4 Low Security (%) 50 | 100 100 100 . 100 . 100 100 13 . . . . 100 . . . . 100 100 46 . . . . 68 14 . 34 Level 1 12 | . . . . . . . . 2 . . . . . . . . . . . 44 . . . . 31 10 46 11 Level 2 18 | . . . . . . . . 1 . . . . . . . . . . . 9 . . . . . 73 53 26 Level 3 6 | . . . . . . . . 18 . . . . . . . . . . . . . . . . . 1 . 17 Level 4 11 | . . . . . . . . 63 . . . . . . . . . . . . . . . . . . . 10 Level 5 . | . . . . . . . . . . . . . . . . . . . . . . . . . . . . . High Security . | . . . . . . . . . . . . . . . . . . . . . . . . . . . . . Max Security . | . . . . . . . . . . . . . . . . . . . . . . . . . . . . . Peak Influence 1555 | . 15 1 . 31 . 29 29 1555 . . . . 128 . . . . 32 3 472 . . . . 250 710 507 1380 Initial 371 | . . 1 . 31 . . . 2 . . . . . . . . . 24 3 . . . . . 43 127 371 285 Average 384 | . 2 . . 8 . 8 10 1080 . . . . 41 . . . . 19 . 246 . . . . 154 468 414 519 Influence Increases 8514 | . 15 . 75 15 . 87 43 2393 . 90 20 35 272 45 5 5 125 46 . 782 . 245 . 75 924 1336 216 1665 Destroy 0b10 Robot/C 2840 | . . . . . . . . 700 . 80 20 . 20 . . . . . . 280 . . . . 420 480 . 840 Destroy 0b10 Robot/NC 245 | . . . . . . 15 . 35 . . . 5 20 . 5 5 5 . . 30 . 5 . . 30 30 . 60 Destroy Leader 628 | . . . . . . 4 . 156 . 10 . . 10 . . . . . . 52 . . . . 92 122 . 182 Allied During Kill 852 | . . . . . . . . 662 . . . . . . . . . . . 161 . . . . 29 . . . Trap Triggered on 0b10 30 | . . . . . . . . 20 . . . . . . . . . . . 10 . . . . . . . . Successful Hack 241 | . . . . . . 38 . 26 . . . . 8 . . . . 23 . 28 . . . . 39 24 . 55 Select Force Hacks 50 | . . . . . . . . . . . . . . . . . . . . . . . . . . 50 . . Disable Machine 555 | . . . . . . 30 . 210 . . . . 15 . . . . . . 60 . . . . 30 15 . 195 Anti-Garrison Action 200 | . . . . . . . . 200 . . . . . . . . . . . . . . . . . . . . Destroy Structure 833 | . . . . . . . 43 129 . . . . 34 . . . . 8 . 146 . . . . 194 60 6 213 Partial Spotted 240 | . . . . . . . . 90 . . . . 75 . . . . 15 . 15 . . . . 30 15 . . Lose Combat Pursuer 1800 | . 15 . 75 15 . . . 165 . . . 30 90 45 . . 120 . . . . 240 . 75 60 540 210 120 Influence Decreases 7160 | . 10 5 10 75 5 87 40 847 684 285 690 35 154 155 13 5 86 75 10 428 182 164 253 10 762 902 370 818 Entered New Map 2575 | . . 4 . 34 5 . . 1 574 165 670 . . 45 2 . . 15 7 . 132 34 253 . 22 100 290 222 Time Decay 2692 | . 10 1 . 30 . 87 40 356 110 100 10 35 142 90 11 5 56 60 3 118 50 130 . 10 410 392 50 386 Search Patrol Dispatched 100 | . . . . . . . . . . . . . . . . . . . . . . . . . . 100 . . Lost Part 613 | . . . 10 11 . . . 30 . 20 10 . 12 20 . . . . . 20 . . . . 80 310 30 60 Lost Ally 730 | . . . . . . . . 310 . . . . . . . . 30 . . 290 . . . . 100 . . . Purge Threat 450 | . . . . . . . . 150 . . . . . . . . . . . . . . . . 150 . . 150 Squads Dispatched 66 | . . . . . . 1 . 22 . . . . 2 . . . . 3 . 7 . . . . 9 14 1 7 Investigation 27 | . . . . . . . . 11 . . . . 1 . . . . 3 . 5 . . . . 3 2 . 2 Extermination 10 | . . . . . . 1 . 3 . . . . . . . . . . . 1 . . . . 3 2 . . Reinforcement 20 | . . . . . . . . 6 . . . . 1 . . . . . . 1 . . . . 2 6 1 3 Assault 4 | . . . . . . . . 1 . . . . . . . . . . . . . . . . . 3 . . Garrison 1 | . . . . . . . . 1 . . . . . . . . . . . . . . . . . . . . Intercept 4 | . . . . . . . . . . . . . . . . . . . . . . . . . 1 1 . 2 Searches Triggered 1 | . . . . . . . . . . . . . . . . . . . . . . . . . . 1 . . Construction Impeded 5 | . . . . . . . . 1 . . . . . . . . . . . 1 . . . . 2 1 . . Haulers Reinforced 1 | . . . . . . . . 1 . . . . . . . . . . . . . . . . . . . . Active Scanning Responses . | . . . . . . . . . . . . . . . . . . . . . . . . . . . . . Cargo Convoy Interrupts . | . . . . . . . . . . . . . . . . . . . . . . . . . . . . . Stealth | -11 -10 -10 -10 -9 -9 -6 -6 -6 -6 -6 -6 -5 -5 -5 -5 -5 -4 -4 -4 -4 -4 -4 -4 -3 -3 -2 -2 -2 --------- Run | Yrd Mat Min Sub Rec Scr Fac Was Fac Low Low Dat Pro Fac Upp Upp Zhi Pro Fac Was Fac Upp Upp War Pro Res Res Qua Frg Distress Signals 19 | . . . . . . . . 5 . . . . 2 . . . . . . 6 . . . . . 2 . 4 Communications Jammed . | . . . . . . . . . . . . . . . . . . . . . . . . . . . . . Distress Signals . | . . . . . . . . . . . . . . . . . . . . . . . . . . . . . Times Spotted 432 | . 11 . 14 1 . 1 7 47 . 8 4 6 10 3 1 . 15 6 . 22 . 19 15 6 29 81 23 103 Peak Tracking Total 17 | . 9 . 8 1 . . 6 8 . 5 4 5 6 3 1 . 7 6 . 13 . 13 15 6 5 17 9 9 Tactical Retreats 51 | . 1 . 1 1 . . 1 8 . . . 1 4 1 . . 3 . . . . 3 . 1 1 14 4 7 Traps | -11 -10 -10 -10 -9 -9 -6 -6 -6 -6 -6 -6 -5 -5 -5 -5 -5 -4 -4 -4 -4 -4 -4 -4 -3 -3 -2 -2 -2 ------- Run | Yrd Mat Min Sub Rec Scr Fac Was Fac Low Low Dat Pro Fac Upp Upp Zhi Pro Fac Was Fac Upp Upp War Pro Res Res Qua Frg Traps Triggered 9 | . . . . . . 1 . 1 . . . . . . . . . 1 . . . . . . 2 4 . . Indirectly . | . . . . . . . . . . . . . . . . . . . . . . . . . . . . . Trap Hack Attempts . | . . . . . . . . . . . . . . . . . . . . . . . . . . . . . Triggered . | . . . . . . . . . . . . . . . . . . . . . . . . . . . . . Disarmed 6 | . . . . . . . . 6 . . . . . . . . . . . . . . . . . . . . Reprogrammed 35 | . . . . . . . . 17 . . . . . . . . . 11 . 7 . . . . . . . . Reused 3 | . . . . . . . . 2 . . . . . . . . . . . 1 . . . . . . . . Traps Extracted . | . . . . . . . . . . . . . . . . . . . . . . . . . . . . . Installed . | . . . . . . . . . . . . . . . . . . . . . . . . . . . . . Triggered 3 | . . . . . . . . 2 . . . . . . . . . . . 1 . . . . . . . . Objects Rigged 3 | . . . . . . . . . . . . . . . . . . . . 3 . . . . . . . . Machines | -11 -10 -10 -10 -9 -9 -6 -6 -6 -6 -6 -6 -5 -5 -5 -5 -5 -4 -4 -4 -4 -4 -4 -4 -3 -3 -2 -2 -2 ---------- Run | Yrd Mat Min Sub Rec Scr Fac Was Fac Low Low Dat Pro Fac Upp Upp Zhi Pro Fac Was Fac Upp Upp War Pro Res Res Qua Frg Machines Disabled 37 | . . . . . . 2 . 14 . . . . 1 . . . . . . 4 . . . . 2 1 . 13 Max in Single Turn 6 | . . . . . . 1 . 6 . . . . 1 . . . . . . 1 . . . . 1 1 . 1 Garrison Access 6 | . . . . . . . . 3 . . . . 1 . . . . . . . . . . . 1 1 . . Machines Repaired . | . . . . . . . . . . . . . . . . . . . . . . . . . . . . . Machines Dismantled . | . . . . . . . . . . . . . . . . . . . . . . . . . . . . . Machines Sabotaged . | . . . . . . . . . . . . . . . . . . . . . . . . . . . . . Overloaded Fab Kills 10 | . . . . . . . . . . . . . . . . . . . . . . . . . . 10 . . Hacking | -11 -10 -10 -10 -9 -9 -6 -6 -6 -6 -6 -6 -5 -5 -5 -5 -5 -4 -4 -4 -4 -4 -4 -4 -3 -3 -2 -2 -2 --------- Run | Yrd Mat Min Sub Rec Scr Fac Was Fac Low Low Dat Pro Fac Upp Upp Zhi Pro Fac Was Fac Upp Upp War Pro Res Res Qua Frg Machines Accessed 84 | . . . . . . 6 . 28 1 1 4 . 6 . . 4 . 6 . 12 . . 2 . 5 4 1 4 Terminals 34 | . . . . . . 4 . 13 . . . . 3 . . . . 2 . 5 . . . . 2 2 1 2 Fabricators 9 | . . . . . . 2 . 4 . . . . . . . . . 1 . 1 . . . . . 1 . . Repair Stations 3 | . . . . . . . . 1 . . . . 1 . . . . . . 1 . . . . . . . . Recycling Units 15 | . . . . . . . . 6 . . . . . . . . . 3 . 3 . . . . 2 . . 1 Scanalyzers 5 | . . . . . . . . 1 . . . . 1 . . . . . . 2 . . . . . . . 1 Garrison Access 6 | . . . . . . . . 3 . . . . 1 . . . . . . . . . . . 1 1 . . Total Hacks 255 | . . . . . . 11 . 69 1 1 31 . 20 . . 13 . 25 . 40 . . 2 . 13 5 2 22 Successful 165 | . . . . . . 3 . 35 1 1 31 . 14 . . 13 . 18 . 29 . . 2 . 5 3 . 10 Failed 89 | . . . . . . 8 . 34 . . . . 5 . . . . 7 . 11 . . . . 8 2 2 12 Catastrophic 13 | . . . . . . 3 . 6 . . . . 1 . . . . . . . . . . . . 1 . 2 Database Lockouts 1 | . . . . . . . . . . . . . 1 . . . . . . . . . . . . . . . Manual 123 | . . . . . . 8 . 44 . . . . 4 . . . . 15 . 20 . . 1 . 8 4 2 17 Terminals 122 | . . . . . . 9 . 44 . . . . 5 . . . . 17 . 22 . . . . 5 2 2 16 Fabricators 20 | . . . . . . 2 . 9 . . . . . . . . . 3 . 4 . . . . . 2 . . Repair Stations 4 | . . . . . . . . 1 . . . . 1 . . . . . . 2 . . . . . . . . Recycling Units 29 | . . . . . . . . 9 . . . . . . . . . 5 . 6 . . . . 6 . . 3 Scanalyzers 23 | . . . . . . . . 2 . . . . 12 . . . . . . 6 . . . . . . . 3 Garrison Access 9 | . . . . . . . . 4 . . . . 2 . . . . . . . . . . . 2 1 . . Terminal Hacks 80 | . . . . . . . . 11 1 1 31 . 1 . . 13 . 8 . 6 . . 2 . 2 . . 4 Record 16 | . . . . . . . . . . . 11 . . . . 5 . . . . . . . . . . . . Part Schematic 15 | . . . . . . . . . . . 11 . . . . 4 . . . . . . . . . . . . Robot Schematic 6 | . . . . . . . . . . . 6 . . . . . . . . . . . . . . . . . Prototype ID Bank 7 | . . . . . . . . . . . 3 . . . . 4 . . . . . . . . . . . . Open Door 4 | . . . . . . . . . 1 1 . . . . . . . . . . . . 2 . . . . . Branch Access Points 1 | . . . . . . . . . . . . . . . . . . . . 1 . . . . . . . . Emergency Access Points 5 | . . . . . . . . 1 . . . . . . . . . 1 . 1 . . . . 1 . . 1 Alert Level 3 | . . . . . . . . 1 . . . . . . . . . 1 . 1 . . . . . . . . Unreport Threat 3 | . . . . . . . . 1 . . . . . . . . . . . . . . . . 1 . . 1 Locate Traps 4 | . . . . . . . . 1 . . . . 1 . . . . 1 . 1 . . . . . . . . Disarm Traps 1 | . . . . . . . . 1 . . . . . . . . . . . . . . . . . . . . Reprogram Traps 9 | . . . . . . . . 4 . . . . . . . . . 3 . 2 . . . . . . . . Security Status 1 | . . . . . . . . . . . . . . . . . . . . . . . . . . . . 1 Patrol Status 1 | . . . . . . . . . . . . . . . . . . . . . . . . . . . . 1 Recall Reinforcements 1 | . . . . . . . . 1 . . . . . . . . . . . . . . . . . . . . Registered Components 1 | . . . . . . . . . . . . . . . . . . 1 . . . . . . . . . . Registered Prototypes 2 | . . . . . . . . 1 . . . . . . . . . 1 . . . . . . . . . . Fabricator Hacks 3 | . . . . . . . . 1 . . . . . . . . . 1 . 1 . . . . . . . . Network Status 1 | . . . . . . . . . . . . . . . . . . 1 . . . . . . . . . . Load Schematic 1 | . . . . . . . . . . . . . . . . . . . . 1 . . . . . . . . Build 1 | . . . . . . . . 1 . . . . . . . . . . . . . . . . . . . . Repair Station Hacks 2 | . . . . . . . . . . . . . . . . . . . . 2 . . . . . . . . Scan Component 1 | . . . . . . . . . . . . . . . . . . . . 1 . . . . . . . . Repair 1 | . . . . . . . . . . . . . . . . . . . . 1 . . . . . . . . Recycling Unit Hacks 4 | . . . . . . . . 1 . . . . . . . . . 1 . 2 . . . . . . . . Retrieve Components 4 | . . . . . . . . 1 . . . . . . . . . 1 . 2 . . . . . . . . Scanalyzer 19 | . . . . . . . . . . . . . 11 . . . . . . 6 . . . . . . . 2 Insert Component 5 | . . . . . . . . . . . . . 3 . . . . . . 2 . . . . . . . . Analyze 6 | . . . . . . . . . . . . . 4 . . . . . . 2 . . . . . . . . Retrieve Study 8 | . . . . . . . . . . . . . 4 . . . . . . 2 . . . . . . . 2 Garrison Access Hacks 5 | . . . . . . . . 2 . . . . 1 . . . . . . . . . . . 1 1 . . Seal Access 5 | . . . . . . . . 2 . . . . 1 . . . . . . . . . . . 1 1 . . Unauthorized Hacks 52 | . . . . . . 3 . 20 . . . . 1 . . . . 8 . 12 . . . . 2 2 . 4 Terminals 33 | . . . . . . 3 . 12 . . . . . . . . . 4 . 9 . . . . 1 1 . 3 Track 2 | . . . . . . . . . . . . . . . . . . . . 1 . . . . . . . 1 Assimilate 5 | . . . . . . 1 . 1 . . . . . . . . . 2 . 1 . . . . . . . . Botnet 21 | . . . . . . 2 . 10 . . . . . . . . . 2 . 4 . . . . 1 1 . 1 Detonate 1 | . . . . . . . . . . . . . . . . . . . . 1 . . . . . . . . Disrupt 1 | . . . . . . . . . . . . . . . . . . . . 1 . . . . . . . . Operators 3 | . . . . . . . . 1 . . . . . . . . . . . 1 . . . . . . . 1 Fabricators 2 | . . . . . . . . . . . . . . . . . . 1 . . . . . . . 1 . . Fabnet 1 | . . . . . . . . . . . . . . . . . . 1 . . . . . . . . . . Overload 1 | . . . . . . . . . . . . . . . . . . . . . . . . . . 1 . . Repair Stations 2 | . . . . . . . . 1 . . . . 1 . . . . . . . . . . . . . . . Patch 2 | . . . . . . . . 1 . . . . 1 . . . . . . . . . . . . . . . Recycling Units 14 | . . . . . . . . 6 . . . . . . . . . 3 . 3 . . . . 1 . . 1 Fedlink 13 | . . . . . . . . 6 . . . . . . . . . 3 . 3 . . . . . . . 1 Scrapoids 1 | . . . . . . . . . . . . . . . . . . . . . . . . . 1 . . . Scanalyzers . | . . . . . . . . . . . . . . . . . . . . . . . . . . . . . Garrison Access 1 | . . . . . . . . 1 . . . . . . . . . . . . . . . . . . . . Jam 1 | . . . . . . . . 1 . . . . . . . . . . . . . . . . . . . . Data Cores Recovered . | . . . . . . . . . . . . . . . . . . . . . . . . . . . . . Used . | . . . . . . . . . . . . . . . . . . . . . . . . . . . . . Hacking Detections 56 | . . . . . . 6 . 19 . . . . 4 . . . . 5 . 9 . . . . 5 3 1 4 Full Trace Events 8 | . . . . . . . . 3 . . . . . . . . . . . 2 . . . . 2 . . 1 Feedback Events 1 | . . . . . . . . 1 . . . . . . . . . . . . . . . . . . . . Hackware Fried 1 | . . . . . . . . 1 . . . . . . . . . . . . . . . . . . . . Feedback Blocked . | . . . . . . . . . . . . . . . . . . . . . . . . . . . . . Robot Schematics Acquired 6 | . . . . . . . . . . . 6 . . . . . . . . . . . . . . . . . Robots Built . | . . . . . . . . . . . . . . . . . . . . . . . . . . . . . Authchips . | . . . . . . . . . . . . . . . . . . . . . . . . . . . . . Time 134 | . . . . . . . . 134 . . . . . . . . . . . . . . . . . . . . Total Robot Build Rating . | . . . . . . . . . . . . . . . . . . . . . . . . . . . . . Part Schematics Acquired 19 | . . . . . . . . . . . 11 . 2 . . 4 . . . 2 . . . . . . . . Parts Built . | . . . . . . . . . . . . . . . . . . . . . . . . . . . . . Authchips . | . . . . . . . . . . . . . . . . . . . . . . . . . . . . . Time . | . . . . . . . . . . . . . . . . . . . . . . . . . . . . . Total Part Build Rating . | . . . . . . . . . . . . . . . . . . . . . . . . . . . . . Part Studies Acquired 8 | . . . . . . . . . . . . . 4 . . . . . . 2 . . . . . . . 2 Parts Repaired 1 | . . . . . . . . . . . . . . . . . . . . 1 . . . . . . . . Time 26 | . . . . . . . . . . . . . . . . . . . . 26 . . . . . . . . Parts Recycled . | . . . . . . . . . . . . . . . . . . . . . . . . . . . . . Recycled Matter . | . . . . . . . . . . . . . . . . . . . . . . . . . . . . . Retrieved Matter . | . . . . . . . . . . . . . . . . . . . . . . . . . . . . . Retrieved Components 3 | . . . . . . . . 2 . . . . . . . . . . . 1 . . . . . . . . Parts Scanalyzed 4 | . . . . . . . . . . . . . 2 . . . . . . 2 . . . . . . . . Part Schematics Acquired 4 | . . . . . . . . . . . . . 2 . . . . . . 2 . . . . . . . . Parts Damaged . | . . . . . . . . . . . . . . . . . . . . . . . . . . . . . Bothacking | -11 -10 -10 -10 -9 -9 -6 -6 -6 -6 -6 -6 -5 -5 -5 -5 -5 -4 -4 -4 -4 -4 -4 -4 -3 -3 -2 -2 -2 ------------ Run | Yrd Mat Min Sub Rec Scr Fac Was Fac Low Low Dat Pro Fac Upp Upp Zhi Pro Fac Was Fac Upp Upp War Pro Res Res Qua Frg Used RIF Installer . | . . . . . . . . . . . . . . . . . . . . . . . . . . . . . Robots Hacked . | . . . . . . . . . . . . . . . . . . . . . . . . . . . . . Non-combat . | . . . . . . . . . . . . . . . . . . . . . . . . . . . . . Combat . | . . . . . . . . . . . . . . . . . . . . . . . . . . . . . Robot Hacks Applied . | . . . . . . . . . . . . . . . . . . . . . . . . . . . . . Relay Couplers Released . | . . . . . . . . . . . . . . . . . . . . . . . . . . . . . Fabnet Peak Effective % 3 | . . . . . . . . . . . . . . . . . . . . . . . . 3 3 1 1 1 Robots Rewired 5 | . . . . . . . . . . . . . . . . . . . . . . . 5 . . . . . Allies Hacked . | . . . . . . . . . . . . . . . . . . . . . . . . . . . . . Hacks Repelled . | . . . . . . . . . . . . . . . . . . . . . . . . . . . . . Allies | -11 -10 -10 -10 -9 -9 -6 -6 -6 -6 -6 -6 -5 -5 -5 -5 -5 -4 -4 -4 -4 -4 -4 -4 -3 -3 -2 -2 -2 -------- Run | Yrd Mat Min Sub Rec Scr Fac Was Fac Low Low Dat Pro Fac Upp Upp Zhi Pro Fac Was Fac Upp Upp War Pro Res Res Qua Frg Total Allies 52 | . . . . . . . 19 1 . . . . . . . . . 1 20 1 . . 5 . 5 . . . Largest Group 21 | . . . . . . . 18 16 . . . . . . . . . 1 21 21 . . 5 . 5 . . . Highest-Rated Group 774 | . . . . . . . 656 606 . . . . . . . . . 10 774 774 . . 257 . 323 . . . Highest-Rated Ally 67 | . . . . . . . 50 50 . . . . . . . . . 10 50 50 . . 56 . 67 . . . Total Orders 10 | . . . . . . . . . . . . . . . . . 7 . . . . . 3 . . . . . STAY 2 | . . . . . . . . . . . . . . . . . 1 . . . . . 1 . . . . . ROAM 1 | . . . . . . . . . . . . . . . . . . . . . . . 1 . . . . . FOLLOW 2 | . . . . . . . . . . . . . . . . . 1 . . . . . 1 . . . . . EXPLORE 1 | . . . . . . . . . . . . . . . . . 1 . . . . . . . . . . . RETURN 4 | . . . . . . . . . . . . . . . . . 4 . . . . . . . . . . . Ally Attacks 417 | . . . . . . . 104 179 . . . . . . . . . . . 78 . . 1 . 55 . . . Total Damage 12916 | . . . . . . . 3533 4711 . . . . . . . . . . . 3312 . . 40 . 1320 . . . Kills 62 | . . . . . . . 7 31 . . . . . . . . . . . 20 . . . . 4 . . . Allies Corrupted . | . . . . . . . . . . . . . . . . . . . . . . . . . . . . . Allies Melted 1 | . . . . . . . . . . . . . . . . . . . . . . . . . . . . 1 Intel | -11 -10 -10 -10 -9 -9 -6 -6 -6 -6 -6 -6 -5 -5 -5 -5 -5 -4 -4 -4 -4 -4 -4 -4 -3 -3 -2 -2 -2 ------- Run | Yrd Mat Min Sub Rec Scr Fac Was Fac Low Low Dat Pro Fac Upp Upp Zhi Pro Fac Was Fac Upp Upp War Pro Res Res Qua Frg Active Infowar (turns) 6949 | . . . . . . 281 117 862 231 213 71 143 244 195 148 107 643 139 170 251 114 276 409 . 374 935 119 907 Optics 2335 | . . . . . . . . . . . . . . . . . . . . . . . . . 374 935 119 907 Sensors 5009 | . . . . . . 281 117 860 231 213 71 143 244 195 148 107 643 139 170 250 114 276 409 . . 398 . . Terrain 1768 | . . . . . . 279 117 862 231 213 66 . . . . . . . . . . . . . . . . . Cloaking 276 | . . . . . . . . . . . . . . . . . . . 46 230 . . . . . . . . Robot Analysis Total 154 | . . . . . . . . . . . 154 . . . . . . . . . . . . . . . . . Derelict Logs Recovered 12 | . . 1 1 . 1 . . . 1 2 . . . . 2 . 1 . . . 1 2 . . . . . . Drone Launches 12 | . . . . . . . . . . . . . . . . . 12 . . . . . . . . . . . Drone Recoveries 9 | . . . . . . . . . . . . . . . . . 9 . . . . . . . . . . . Exploration | -11 -10 -10 -10 -9 -9 -6 -6 -6 -6 -6 -6 -5 -5 -5 -5 -5 -4 -4 -4 -4 -4 -4 -4 -3 -3 -2 -2 -2 ------------- Run | Yrd Mat Min Sub Rec Scr Fac Was Fac Low Low Dat Pro Fac Upp Upp Zhi Pro Fac Was Fac Upp Upp War Pro Res Res Qua Frg Turns Passed 8740 | 26 60 166 152 123 337 319 117 862 231 213 71 143 346 199 148 111 643 139 170 251 114 276 418 153 991 935 119 907 Spaces Moved 14333 | 45 113 324 156 230 825 681 160 2201 507 461 119 250 682 367 302 185 667 484 333 720 324 609 932 376 722 709 219 630 Core 1835 | 45 113 324 156 230 136 . . . . . . . . . . . . . . . . . . 134 146 82 219 250 Treads . | . . . . . . . . . . . . . . . . . . . . . . . . . . . . . Legs 629 | . . . . . . . . . . . . . . . . . . . . . . . . . 237 12 . 380 Wheels 954 | . . . . . . . . . . . . . . . . . . . . . . . . . 339 615 . . Hover . | . . . . . . . . . . . . . . . . . . . . . . . . . . . . . Flight 10915 | . . . . . 689 681 160 2201 507 461 119 250 682 367 302 185 667 484 333 720 324 609 932 242 . . . . Fastest Speed 6 | 50 50 50 50 50 34 32 32 24 30 28 28 28 32 34 39 26 15 26 26 15 26 15 6 32 50 50 50 50 Average Speed 39 | 50 50 50 50 50 38 32 32 29 30 29 28 28 32 39 39 33 25 26 26 25 26 24 23 40 99 90 50 71 Slowest Speed 260 | 50 50 50 50 50 117 34 32 34 30 32 28 32 34 40 40 39 26 26 26 26 26 26 26 50 260 120 50 106 Overloaded Moves 262 | . . . . . . . . . . . . . . . . . 71 . . 35 . 102 14 40 . . . . Propulsion Burnouts . | . . . . . . . . . . . . . . . . . . . . . . . . . . . . . Robots Hopped 37 | . . . . . . 2 . 7 . . . 1 2 . 2 . . 2 . 10 . . 8 3 . . . . Potential Cave-ins 3 | . . . . . . . . . . . . . . . . . . . . . . . 3 . . . . . Cave-ins Triggered . | . . . . . . . . . . . . . . . . . . . . . . . . . . . . . Teleports 1 | . . . . . . . . . . . . . . . . . . . . . . . . . . . . 1 Exploration Rate (%) 47 | 3 27 67 14 49 71 13 81 66 62 61 77 38 15 55 45 60 73 9 95 20 54 55 93 55 16 29 48 33 Regions Visited 28 Branch Regions 18 Pre-discovered Areas 36 | . . 1 . . . . . 1 . . 30 . . . . 3 1 . . . . . . . . . . . Known Exits Taken 19 | . . 1 1 1 1 . . 1 1 1 1 1 1 1 1 1 1 . . 1 1 1 1 1 . . . . Unknown Exits Taken 5 | 1 1 . . . . . . . . . . . . . . . . . . . . . . . 1 1 1 . Scrap Searched 24 | . . 1 . . 5 . . . 5 2 . . . 2 . . 3 . . . 3 2 . 1 . . . . Spaces Dug 142 | . . . . . . . . 25 8 10 . 7 17 5 3 . 18 4 . 16 . 10 . . 6 10 2 1 Terrain Destroyed 399 | . . . . . . . 30 41 8 51 . 7 17 5 3 . 18 4 . 16 . 10 . . 82 21 2 84 Melee 134 | . . . . . . . . 25 8 10 . 7 17 5 3 . 18 4 . 16 . 10 . . . 8 2 1 Projectile 176 | . . . . . . . . . . . . . . . . . . . . . . . . . 81 12 . 83 AOE 87 | . . . . . . . 30 16 . 41 . . . . . . . . . . . . . . . . . . Terrain Rammed . | . . . . . . . . . . . . . . . . . . . . . . . . . . . . . Walls Destroyed . | . . . . . . . . . . . . . . . . . . . . . . . . . . . . . Machines Disabled . | . . . . . . . . . . . . . . . . . . . . . . . . . . . . . Actions | -11 -10 -10 -10 -9 -9 -6 -6 -6 -6 -6 -6 -5 -5 -5 -5 -5 -4 -4 -4 -4 -4 -4 -4 -3 -3 -2 -2 -2 --------- Run | Yrd Mat Min Sub Rec Scr Fac Was Fac Low Low Dat Pro Fac Upp Upp Zhi Pro Fac Was Fac Upp Upp War Pro Res Res Qua Frg Total 16527 | 46 115 326 229 237 848 735 215 2322 570 513 147 308 759 409 311 218 1110 490 416 763 353 724 1115 375 876 905 224 868 Wait 1266 | . 1 . 68 8 1 8 44 41 44 36 23 50 46 35 1 4 416 2 71 27 28 100 160 1 6 16 . 29 Move 14243 | 44 112 323 155 229 824 677 159 2186 506 460 118 247 677 366 298 184 666 480 332 703 323 608 920 369 721 708 218 630 Hop 28 | . . . . . . 2 . 7 . . . 1 2 . 1 . . 2 . 6 . . 4 3 . . . . Pick Up 74 | . 2 1 1 . 7 3 1 7 2 . . . 1 . . 1 . . 1 . . . 1 . 14 14 . 18 Fast Attach 158 | 2 . 2 . . 5 9 . 8 1 1 . . 6 1 1 8 3 2 5 4 1 1 10 1 27 31 2 27 Attach 40 | . . . . . 3 5 . 1 . . . 1 . . . 1 . . 1 . . . . . 6 13 1 8 Detach 12 | . . . . . 1 2 . . . . . . . . . . . . . . . . . . 1 4 1 3 Swap 32 | . . . . . 1 3 . 2 1 . 1 1 2 . . 3 . . . 2 . . . . 4 3 . 9 Drop 117 | . . . . . 6 5 1 13 5 . . . . 1 . 7 4 . 6 3 1 . 5 1 13 18 . 28 Fire 261 | . . . . . . . 10 7 . 5 . . . . . . . . . . . . . . 84 63 . 92 Melee 240 | . . . . . . 21 . 42 11 11 5 8 25 6 10 10 21 4 . 18 . 15 . . . 30 2 1 Ram 10 | . . . 5 . . . . . . . . . . . . . . . . . . . 1 . . 4 . . Kick 1 | . . . . . . . . . . . . . . . . . . . . . . . . . . . . 1 Crush . | . . . . . . . . . . . . . . . . . . . . . . . . . . . . . Escape Stasis 9 | . . . . . . . . 8 . . . . . . . . . . . . . . . . . 1 . . Rewire 16 | . . . . . . . . . . . . . . . . . . . . . . . 14 . . . . 2 Trap . | . . . . . . . . . . . . . . . . . . . . . . . . . . . . . Miscellaneous 20 | . . . . . . . . . . . . . . . . . . . . . . . . . . . . 20 Route ------- -11/Scrapyard -10/Materials -10/Mines -10/Subcaves -9/Recycling -9/Scraptown (discovered 2 exits: *Fac x2) -6/Factory (discovered 2 exits: Fac / *Low) -6/Waste -6/Factory (discovered 3 exits: *Fac x2 / *Low) -6/Lower Caves -6/Lower Caves (discovered 2 exits: *Fac / *Dat) -6/Data Miner -5/Proximity Caves -5/Factory (discovered 2 exits: *Fac / *Upp) -5/Upper Caves -5/Upper Caves -5/Zhirov -4/Proximity Caves -4/Factory (discovered 2 exits: Upp / Ext) -4/Waste -4/Factory (discovered 4 exits: *Upp x2 / Ext x2) -4/Upper Caves -4/Upper Caves -4/Warlord -3/Proximity Caves -3/Research -2/Research (discovered 2 exits: [*Acc] / *Qua) -2/Quarantine (discovered 3 exits: [*Acc] / [*Sec] / *Frg) -2/Protoforge History --------- Turn | Location | Event 4 | -11/Scrapyard | Discovered new exit (range 15) 27 | -11/Scrapyard | Entered Materials 80 | -10/Materials | Discovered new exit (range 14) 87 | -10/Materials | Entered Mines 102 | -10/Mines | Learned location of Mines (-9) 178 | -10/Mines | Met a Derelict bent on vengeance 252 | -10/Mines | Discovered new exit (range 3) 253 | -10/Mines | Identified exit to Subcaves 253 | -10/Mines | Entered Subcaves 254 | -10/Subcaves | Approached by a straggling Scientist 316 | -10/Subcaves | Build established: Mutant 368 | -10/Subcaves | Learned Materials security intel 396 | -10/Subcaves | Discovered new exit (range 14) 405 | -10/Subcaves | Identified exit to Recycling 405 | -10/Subcaves | Entered Recycling 438 | -9/Recycling | Core integrity fell below 50% 515 | -9/Recycling | Scanned before Scraplab entrance 522 | -9/Recycling | Entered Scraplab 527 | -9/Recycling | Discovered new exit (range 3) 527 | -9/Recycling | Identified exit to Scraptown 528 | -9/Recycling | Entered Scraptown 631 | -9/Scraptown | Discovered new exit (range 13) 651 | -9/Scraptown | Scanned Subdweller tech in exchange for log data 652 | -9/Scraptown | Learned Factory stockpile data 671 | -9/Scraptown | Visited Bundlers 713 | -9/Scraptown | Visited UFD Registry 713 | -9/Scraptown | Registered with UFD as "Microbank" 721 | -9/Scraptown | Visited Derelict Rescue Squad 733 | -9/Scraptown | Visited DA-N13 Charitable Foundation 734 | -9/Scraptown | Found DCF Scrap (27 items) 758 | -9/Scraptown | Delivered Scrap Shield to a Scientist 777 | -9/Scraptown | Visited A0-MCA Data Center 783 | -9/Scraptown | Given a B rating by A0-MCA 787 | -9/Scraptown | Found A0-MCA's Component Scanner 794 | -9/Scraptown | Visited Infowarlord's Domain 797 | -9/Scraptown | Found Exp. Terrain Scanner 825 | -9/Scraptown | Visited Research Penetration Think Tank 845 | -9/Scraptown | Met Optimus 845 | -9/Scraptown | Accepted into 0bPrime 863 | -9/Scraptown | Discovered new exit (range 5) 864 | -9/Scraptown | Identified exit to Factory 865 | -9/Scraptown | Entered Factory 865 | -6/Factory | Evolved 8 slots: Propulsion x3, Utility x5 974 | -6/Factory | Discovered new exit (range 10) 978 | -6/Factory | Identified exit to Lower Caves 1121 | -6/Factory | Discovered new exit (range 23) 1161 | -6/Factory | Build established: Scout 1184 | -6/Factory | Sucked down chute 1184 | -6/Factory | Entered Waste 1185 | -6/Waste | Met a frightened Derelict 1188 | -6/Waste | Spotted C-40 Crusher 1193 | -6/Waste | Spotted C-40 Crusher 1197 | -6/Waste | Spotted C-40 Crusher 1200 | -6/Waste | Spotted C-40 Crusher 1206 | -6/Waste | Spotted C-40 Crusher 1207 | -6/Waste | Spotted C-40 Crusher 1215 | -6/Waste | Warlord forces began an assault 1223 | -6/Waste | Allies destroyed C-40 Crusher 1233 | -6/Waste | Discovered new exit (range 29) 1233 | -6/Waste | Allies destroyed C-40 Crusher 1233 | -6/Waste | Allies destroyed C-40 Crusher 1240 | -6/Waste | Allies destroyed C-40 Crusher 1247 | -6/Waste | Allies destroyed C-40 Crusher 1256 | -6/Waste | Identified exit to Factory 1301 | -6/Waste | Entered Factory 1301 | -6/Factory | Accompanied by 16 allies 1340 | -6/Factory | Loaded intel: 8 recycling unit locations 1375 | -6/Factory | Learned location of Protoforge (-2) 1420 | -6/Factory | Discovered exit to Lower Caves (range 21) 1442 | -6/Factory | Garrison activated, responded to threat 1673 | -6/Factory | Hacking Suite fried by hacking feedback 1756 | -6/Factory | Lost 6 allies 1785 | -6/Factory | Discovered new exit (range 30) 2001 | -6/Factory | First assault squad dispatched 2071 | -6/Factory | Discovered new exit (range 15) 2163 | -6/Factory | Entered Lower Caves 2165 | -6/Lower Caves | UFD Scientist delivered a prototype 2168 | -6/Lower Caves | Found Prototype Protection 2295 | -6/Lower Caves | Learned Factory garrison access intel 2374 | -6/Lower Caves | Discovered new exit (range 29) 2394 | -6/Lower Caves | Identified exit to Lower Caves 2394 | -6/Lower Caves | Entered another Lower Caves area 2404 | -6/Lower Caves | Discovered new exit (range 27) 2410 | -6/Lower Caves | Encountered a Warlord checkpoint 2476 | -6/Lower Caves | Learned 4 Factory zone layouts 2527 | -6/Lower Caves | Discovered new exit (range 30) 2607 | -6/Lower Caves | Identified exit to Data Miner 2607 | -6/Lower Caves | Entered Data Miner 2607 | -6/Data Miner | Discovered new exit (range 6) 2609 | -6/Data Miner | Identified exit to Proximity Caves 2614 | -6/Data Miner | Met Data Miner 2622 | -6/Data Miner | Learned location of Section 7 (-2) 2622 | -6/Data Miner | Acquired the access code to Warlord's prototype stash 2625 | -6/Data Miner | Received God Mode back door access code from Data Miner 2652 | -6/Data Miner | Destroyed Data Miner 2655 | -6/Data Miner | Interfaced with the Data Conduit 2678 | -6/Data Miner | Entered Proximity Caves 2816 | -5/Proximity Caves | Attracted the attention of an 0b10 checkpoint 2819 | -5/Proximity Caves | Discovered new exit (range 8) 2821 | -5/Proximity Caves | Identified exit to Factory 2821 | -5/Proximity Caves | Entered Factory 2821 | -5/Factory | Evolved 2 slots: Utility x2 2823 | -5/Factory | Loaded intel: 262 machine locations 2824 | -5/Factory | Loaded intel: 4 garrison access locations 2897 | -5/Factory | Discovered new exit (range 12) 2937 | -5/Factory | Identified exit to Upper Caves 3052 | -5/Factory | Discovered new exit (range 15) 3068 | -5/Factory | Central database locked down 3068 | -5/Factory | Identified Enh. Scrap Shield 3167 | -5/Factory | Entered Upper Caves 3301 | -5/Upper Caves | Build established: Hacker-Mutant 3363 | -5/Upper Caves | Discovered new exit (range 5) 3365 | -5/Upper Caves | Identified exit to Upper Caves 3366 | -5/Upper Caves | Entered another Upper Caves area 3410 | -5/Upper Caves | Learned Factory emergency access door positions 3439 | -5/Upper Caves | Spotted B-75 Beast 3460 | -5/Upper Caves | Encountered a Warlord checkpoint 3486 | -5/Upper Caves | Discovered new exit (range 7) 3490 | -5/Upper Caves | Identified exit to Zhirov 3514 | -5/Upper Caves | Entered Zhirov 3514 | -5/Zhirov | Discovered new exit (range 3) 3522 | -5/Zhirov | Met Zhirov 3533 | -5/Zhirov | Zhirov requested help retrieving the SGEMP Prototype 3540 | -5/Zhirov | Found Alien Artifact 3540 | -5/Zhirov | Identified Integrated Reactor 3540 | -5/Zhirov | Installed Integrated Reactor, increased core energy generation (+10) 3555 | -5/Zhirov | Found Alien Artifact 3625 | -5/Zhirov | Identified exit to Proximity Caves 3625 | -5/Zhirov | Entered Proximity Caves 3830 | -4/Proximity Caves | Build established: Hacker-Sprinter 4250 | -4/Proximity Caves | Attracted the attention of an 0b10 checkpoint 4265 | -4/Proximity Caves | Discovered new exit (range 7) 4266 | -4/Proximity Caves | Identified exit to Factory 4268 | -4/Proximity Caves | Entered Factory 4268 | -4/Factory | Evolved 2 slots: Propulsion x1, Utility x1 4269 | -4/Factory | Identified exit to Upper Caves 4269 | -4/Factory | Identified exit to Extension 4271 | -4/Factory | Loaded intel: 274 machine locations 4271 | -4/Factory | Loaded intel: 8 recycling unit locations 4407 | -4/Factory | Manually triggered Chute Trap 4407 | -4/Factory | Sucked down chute 4407 | -4/Factory | Entered Waste 4408 | -4/Waste | Joined by Warlord forces that had cleared the area 4427 | -4/Waste | 1 allies followed down the chute 4492 | -4/Waste | Discovered new exit (range 12) 4508 | -4/Waste | Found Broken Femtoactuators 4534 | -4/Waste | Identified exit to Factory 4577 | -4/Waste | Entered Factory 4577 | -4/Factory | Accompanied by 21 allies 4578 | -4/Factory | Loaded intel: 305 machine locations 4717 | -4/Factory | Lost 4 allies 4732 | -4/Factory | Repaired Exp. Propulsion Shielding 4749 | -4/Factory | Loaded intel: 8 recycling unit locations 4828 | -4/Factory | Entered Upper Caves 4868 | -4/Upper Caves | Encountered a Warlord checkpoint 4938 | -4/Upper Caves | Learned Research garrison access intel 4939 | -4/Upper Caves | Discovered new exit (range 13) 4942 | -4/Upper Caves | Identified exit to Upper Caves 4942 | -4/Upper Caves | Entered another Upper Caves area 5164 | -4/Upper Caves | Learned 8 Research zone layouts 5177 | -4/Upper Caves | Learned Research machine intel 5203 | -4/Upper Caves | Spotted B-86 Titan 5215 | -4/Upper Caves | Discovered new exit (range 10) 5218 | -4/Upper Caves | Identified exit to Warlord 5218 | -4/Upper Caves | Entered Warlord 5228 | -4/Warlord | System corruption cleaned by Quarantine Array 5296 | -4/Warlord | Rebuked by Warlord 5321 | -4/Warlord | Warlord's base attacked by MAIN.C 5339 | -4/Warlord | Opened Warlord's prototype stash 5344 | -4/Warlord | Found Prototype Hackware 5349 | -4/Warlord | Found Exp. Core Analyzer 5381 | -4/Warlord | Found Prototype Energy Cannon 5381 | -4/Warlord | Identified Vortex Driver 5509 | -4/Warlord | Opened side exit 5619 | -4/Warlord | Discovered new exit (range 10) 5621 | -4/Warlord | Spotted Executioner 5628 | -4/Warlord | Spotted Executioner 5632 | -4/Warlord | Identified exit to Proximity Caves 5636 | -4/Warlord | Entered Proximity Caves 5667 | -3/Proximity Caves | Lost 10 parts (1p5n2u2w) 5693 | -3/Proximity Caves | Spotted B-86 Titan 5729 | -3/Proximity Caves | Core integrity fell below 50% 5762 | -3/Proximity Caves | Lost 3 parts (1n2u) 5779 | -3/Proximity Caves | Discovered new exit (range 15) 5788 | -3/Proximity Caves | Identified exit to Research 5789 | -3/Proximity Caves | Entered Research 5789 | -3/Research | Evolved 2 slots: Utility x2 5791 | -3/Research | Loaded intel: 123 machine locations 5792 | -3/Research | Loaded intel: 4 garrison access locations 5795 | -3/Research | Identified System Mapper 5819 | -3/Research | Scrapoids reinforcements arrived? 5924 | -3/Research | Found Scrap Suit 5950 | -3/Research | Lost 4 allies 6104 | -3/Research | Intercept squad dispatched 6121 | -3/Research | Spotted Tracker 6133 | -3/Research | Spotted Combat Programmer 6149 | -3/Research | Destroyed Combat Programmer 6169 | -3/Research | Build established: Scavenger-Mutant 6304 | -3/Research | System corruption reached 10% 6339 | -3/Research | Lost 5 parts (2n2u1w) 6373 | -3/Research | Found Exp. Thermal Shield 6399 | -3/Research | Destroyed Tracker 6407 | -3/Research | Found Exp. Targeting Computer 6412 | -3/Research | Discovered new exit (range 6) 6444 | -3/Research | Found Exp. Focal Shield 6780 | -3/Research | Entered another Research area 6780 | -2/Research | Evolved 2 slots: Weapon x2 6781 | -2/Research | Loaded intel: 106 machine locations 6913 | -2/Research | Discovered new exit (range 10) 7023 | -2/Research | Lost 8 parts (1n3u4w) 7030 | -2/Research | Search patrols dispatched 7102 | -2/Research | Found Exp. Actuator Array 7158 | -2/Research | Intercept squad dispatched 7196 | -2/Research | Spotted Tracker 7197 | -2/Research | Spotted Tracker 7205 | -2/Research | Destroyed Tracker 7208 | -2/Research | Spotted Combat Programmer 7213 | -2/Research | Destroyed Tracker 7232 | -2/Research | Destroyed Combat Programmer 7241 | -2/Research | Found Prototype Energy Gun 7243 | -2/Research | Found Exp. Targeting Computer 7245 | -2/Research | Found Exp. Targeting Computer 7248 | -2/Research | Found Exp. Phase Shifter 7261 | -2/Research | Found Prototype Energy Gun 7261 | -2/Research | Identified Immobilizer (x2) 7271 | -2/Research | System corruption reached 10% 7280 | -2/Research | First assault squad dispatched 7289 | -2/Research | Spotted Combat Programmer 7301 | -2/Research | Destroyed Combat Programmer 7317 | -2/Research | Found Exp. Phase Shifter 7320 | -2/Research | Lost 3 parts (1n2u) 7659 | -2/Research | Spotted B-90 Cyclops 7708 | -2/Research | Discovered new exit (range 15) 7715 | -2/Research | Entered Quarantine 7716 | -2/Quarantine | Loaded intel: 77 machine locations 7720 | -2/Quarantine | Lost 10 parts (1p4n4u1w) 7747 | -2/Quarantine | Spotted Alpha 7 7749 | -2/Quarantine | Discovered new exit (range 16) 7789 | -2/Quarantine | Core integrity fell below 50% 7797 | -2/Quarantine | Spotted Fortress 7832 | -2/Quarantine | Discovered new exit (range 7) 7832 | -2/Quarantine | Discovered new exit (range 6) 7834 | -2/Quarantine | Entered Protoforge 7835 | -2/Protoforge | Loaded intel: 396 machine locations 7855 | -2/Protoforge | Spotted B-90 Cyclops 7872 | -2/Protoforge | Spotted Hotshot 7873 | -2/Protoforge | Spotted Hotshot 7877 | -2/Protoforge | Superfortress began startup sequence 7893 | -2/Protoforge | Spotted Hotshot 7895 | -2/Protoforge | Spotted Hotshot 7916 | -2/Protoforge | Identified Transdimensional Reconstructor 7916 | -2/Protoforge | Warped through subspace 7921 | -2/Protoforge | Spotted Decapitator 7921 | -2/Protoforge | Spotted Decapitator 7923 | -2/Protoforge | Spotted EXE-6 7924 | -2/Protoforge | Spotted EXE-6 7941 | -2/Protoforge | UFD initiated attack on Protoforge (Readiness: Adequate) 7941 | -2/Protoforge | Loaded intel: 3 recycling unit locations 7954 | -2/Protoforge | Spotted EXE-6 7962 | -2/Protoforge | Build established: Hacker-Mutant 7977 | -2/Protoforge | Optimus greeted in Protoforge 7979 | -2/Protoforge | Spotted EXE-6 7993 | -2/Protoforge | Found Prototype Ballistic Gun 7993 | -2/Protoforge | Identified Cep. XC Strikerail 8002 | -2/Protoforge | Found Exp. Armor Integrity Analyzer 8004 | -2/Protoforge | Found Prototype Device 8004 | -2/Protoforge | Identified Exp. Kinecellerator 8016 | -2/Protoforge | Found Cep. XC Strikerail 8019 | -2/Protoforge | Found Exp. Core Analyzer 8021 | -2/Protoforge | Found Exp. Armor Integrity Analyzer 8024 | -2/Protoforge | Found Exp. Core Analyzer 8028 | -2/Protoforge | Found Exp. Kinecellerator 8074 | -2/Protoforge | Intercept squad dispatched 8083 | -2/Protoforge | Found Exp. Core Analyzer 8090 | -2/Protoforge | Found Exp. Core Analyzer 8103 | -2/Protoforge | Spotted Tracker 8108 | -2/Protoforge | Destroyed Tracker 8112 | -2/Protoforge | Spotted AP7-3 8113 | -2/Protoforge | Spotted AP7-3 8125 | -2/Protoforge | Spotted Tracker 8129 | -2/Protoforge | Met 7R-MNS 8129 | -2/Protoforge | Destroyed AP7-3 8132 | -2/Protoforge | Spotted Combat Programmer 8132 | -2/Protoforge | Spotted Striker 8143 | -2/Protoforge | Spotted Striker 8153 | -2/Protoforge | Destroyed Combat Programmer 8162 | -2/Protoforge | Spotted Combat Programmer 8171 | -2/Protoforge | Destroyed Combat Programmer 8177 | -2/Protoforge | Lost 6 allies 8178 | -2/Protoforge | Found Cep. XC Strikerail 8222 | -2/Protoforge | Spotted Striker 8222 | -2/Protoforge | Spotted Striker 8253 | -2/Protoforge | P-80 Master assimilated allied 02F04-K 8256 | -2/Protoforge | Spotted 02F04-K 8281 | -2/Protoforge | Spotted Executioner 8285 | -2/Protoforge | Destroyed Hotshot 8311 | -2/Protoforge | Found UFD Drillbomb 8313 | -2/Protoforge | Destroyed 20 combat bots 8317 | -2/Protoforge | Spotted Executioner 8333 | -2/Protoforge | Destroyed Executioner 8357 | -2/Protoforge | Lost 15 allies 8384 | -2/Protoforge | Installed UFD Drillbomb at designated target 8384 | -2/Protoforge | UFD reported confirmed Drillbomb installation 8418 | -2/Protoforge | Found UFD Drillbomb 8445 | -2/Protoforge | Spotted Striker 8445 | -2/Protoforge | Spotted Striker 8451 | -2/Protoforge | Core integrity fell below 20% 8452 | -2/Protoforge | Build established: Scavenger-Gunner 8457 | -2/Protoforge | Destroyed Striker 8460 | -2/Protoforge | Destroyed Striker 8471 | -2/Protoforge | Spotted Executioner 8482 | -2/Protoforge | Spotted Executioner 8486 | -2/Protoforge | Destroyed Executioner 8492 | -2/Protoforge | P-80 Master assimilated allied 02F40-D 8508 | -2/Protoforge | Destroyed Executioner 8529 | -2/Protoforge | Destroyed 8 combat bots 8569 | -2/Protoforge | Installed UFD Drillbomb at designated target 8569 | -2/Protoforge | UFD reported confirmed Drillbomb installation 8573 | -2/Protoforge | Spotted Decapitator 8573 | -2/Protoforge | Spotted Decapitator 8573 | -2/Protoforge | Spotted Decapitator 8573 | -2/Protoforge | Spotted Decapitator 8576 | -2/Protoforge | Destroyed Decapitator 8583 | -2/Protoforge | Destroyed Decapitator 8617 | -2/Protoforge | Destroyed B-90 Cyclops 8628 | -2/Protoforge | Spotted Executioner 8630 | -2/Protoforge | Spotted Striker 8637 | -2/Protoforge | Destroyed Striker 8644 | -2/Protoforge | Destroyed Executioner 8658 | -2/Protoforge | Intercept squad dispatched 8664 | -2/Protoforge | Spotted Hotshot 8665 | -2/Protoforge | Spotted Tracker 8666 | -2/Protoforge | Spotted Tracker 8666 | -2/Protoforge | Destroyed Tracker 8667 | -2/Protoforge | Spotted Tracker 8669 | -2/Protoforge | Destroyed Tracker 8673 | -2/Protoforge | Destroyed Tracker 8674 | -2/Protoforge | Spotted Hotshot 8682 | -2/Protoforge | Destroyed Hotshot 8685 | -2/Protoforge | Destroyed Hotshot 8706 | -2/Protoforge | Destroyed 11 combat bots 8715 | -2/Protoforge | Spotted Combat Programmer 8719 | -2/Protoforge | Spotted Combat Programmer 8719 | -2/Protoforge | Spotted Combat Programmer 8723 | -2/Protoforge | System corruption reached 30% 8725 | -2/Protoforge | Destroyed Combat Programmer 8726 | -2/Protoforge | Spotted Executioner 8730 | -2/Protoforge | Spotted Executioner 8732 | -2/Protoforge | Destroyed Combat Programmer 8741 | -2/Protoforge | Destroyed by Executioner with Helical Railgun Last Messages --------------- 08732_ N-04 Retriever collects Med. Treads. 08732_ Penetrated by Slug. 08732_ Slug penetrates Dark Matter Chamber. 08732_ N-04 Retriever collects Lgt. Antimatter Reactor. 08733_ J:TNVW|EYV4/OFVSTKYL2|HRW:POFRA Z 08733_ Slug penetrates Dark Matter Chamber. 08734_ N-04 Retriever collects Powered Hammer. 08734_ Penetrated by EMDS Slug. 08735_ System corrupted: Helical Railgun jammed. 08736_ N-04 Retriever collects Rnf. Antimatter Reactor. 08737_ N-04 Retriever collects Corrupted Imp. Deuterium Engine. 08737_ EMDS Slug penetrates Dark Matter Chamber. 08739_ Slug penetrates Combat Programmer. 08739_ Exp. Weapon Shielding destroyed. 08740_ Penetrated by Slug. 08740_ Cep. XC Strikerail destroyed. 08741_ Penetrated by Slug. Map ----- +----------------------------------------------------+ | # # "" ??# ######""########### % "% # | | / + "" "?# ### ######## % # """" | | # # " ?# ### """ ##????## %% # """" | | # # " "?# ### """ ##?##### "####### """" | | # # ?# ### " " ##?# "% "####### """" | | # # # ### " "" ######## % ##????## | | # # # ### " "" # # ### %"#????## | | # # # ### "" # # ;## #????####### | | # #####""" # # ; # % ##???####### | | ##### # =%! " ! [! ## % ##?????????? | | ####"""" ="="";;;;!!"=% % %##?????????? | | % * " *%=!% * * = =n % #?????????? | | "!!!^ "%" =%* %* *! * ##?????????? | | # %% "" % / % %*! [##?????????? | | #" ! """" ######; ;!/! [!#####??????? | | #"" !! "" " # = ## #####??????? | | #" !%! " # %[ = ##??????? | | #"" [[% ^"""% # % %% | ##??????? | | #"T ; p# # !"! " " ######### | | #"" ; " # ! """ ######### | | #"" ; =% "" " " "" ####????? | | #"" ; ! "" # "" "" ####????? | | #"" " " !/% ####????? | | #" ^ ! ;####;;;;;[ +;##########????? | | E +???"" | | E @ ! = #???"" | | ! =" """ +???"" | | *!! """ " """""" #????? | | ##""" """#;# !##### """ " """""" #???"" | | ##"""T"""### !##### ? ????#???"" | | ################?## ??????#???"" | | ################?## ## ""T"""" # ?????#????? | | ???????############ ##" """"""""#???????###### | | ???????############ ##############??????????### | | ???????##?????????# #?????????####??????????##? | | ???????##?????????# #?????????####??????????##? | | ???????##?????????# ^ #?????????####??????????##? | | ???????##?????????# #?????????####??????????### | | ???????##?????????+ +?????????####??????????### | | ???????##?????????# #?????????####????????????? | | ???????##?????????# #?????????####????????????? | | ???????##?????????+ #?????????####????????????? | | ???????##?##########+################?##?##????""" | | ???????##?####?????????????#########??????#????""" | | ???????##??????????????????##?????##??????#????""" | | ???????#######?????????????##?????##?????????????? | | ???????#######?????????????##?????##??????#??????? | | ????????????##????""?""????##?????##??????#??????? | | ????????????##???????"""???##?????##??????#??????? | | ????????????##????""?"""???##?????################ | +----------------------------------------------------+ Best States ------------- Heat Dissipation 156 Coolant Potential 100 Energy Generation 51 Energy Capacity 500 Matter Stores 300 Matter Capacity 300 Sight Range 23 Robot Scan Range 18 Terrain Scan Range 30 Terrain Scan Density 310 Cloak Strength 4 Additional Mass Support 9 Armor Coverage 900 Resistance: KI 30 Resistance: TH 30 Core Shielding 30 Propulsion Shielding 90 Weapon Shielding 90 Melee Speed Boost 30 Phase Shifting 20 Evasion (%) 71 Targeting Accuracy 36 Melee Accuracy 16 Target Analysis 8 Core Analysis 12 Armor Integrity Analysis 50 Recoil Reduction 3 Kinecelleration 66 Salvage Targeting 4 Offensive Hacking 24 Defensive Hacking 14 Item Schematics ----------------- Combat Drone Bay | -6/Data Miner | Free Lgt. Regenerative Plating | -6/Data Miner | Free Cld. Nuclear Pulse Thruster | -6/Data Miner | Free Prc. Energy Filter | -6/Data Miner | Free Tesla Bomb Launcher | -6/Data Miner | Free Imp. Heavy Treads | -6/Data Miner | Free Imp. Remote Shield | -6/Data Miner | Free Railgun | -6/Data Miner | Free Mic. Fission Core | -6/Data Miner | Free Q-thruster | -6/Data Miner | Free Biometal Medium Treads | -6/Data Miner | Free CPS Tube | -5/Factory | Scanalyzed Power Sword | -5/Factory | Scanalyzed Assault Drone Bay | -5/Zhirov | Free Exp. Heat Sink | -5/Zhirov | Free Exp. Optical Array | -5/Zhirov | Free Imp. Arc Thrower | -5/Zhirov | Free Femtoactuators | -4/Factory | Scanalyzed Imp. Plasma Cutter | -4/Factory | Scanalyzed Robot Schematics ------------------ H-66 Slayer | -6/Data Miner | Free G-50 Soldier | -6/Data Miner | Free B-48 Gladiator | -6/Data Miner | Free B-60 Warrior | -6/Data Miner | Free I-47 Archangel | -6/Data Miner | Free M-30 Cleanser | -6/Data Miner | Free Fabricated ------------ Nothing Repaired ---------- Exp. Propulsion Shielding | 61% | -4/Factory Studied --------- Power Sword | -5/Factory | Hacked VTOL Module | -5/Factory | Hacked Katana | -5/Factory | Hacked Mni. Grenade Launcher | -5/Factory | Hacked Field Propulsion Drive | -4/Factory | Hacked Imp. Plasma Cutter | -4/Factory | Hacked Centrium Leg | -2/Protoforge | Hacked Lgt. Quantum Reactor | -2/Protoforge | Hacked Alien Tech Used ----------------- Integrated Reactor Transdimensional Reconstructor Achievements -------------- Fine I'll Do It Myself Recruitment Drive Challenges ------------ None Game ------ Seed ArcsightSpikedCartridge Manual? 0 Play Time 02:17:49 Cumulative 398.0 hours Start 2025.11.11 @ 05:25:34 End 2025.11.11 @ 07:50:23 Sessions 1 Manual Loads 0 Difficulty Rogue Special Mode None Game No. 367 Rogue 367 Adventurer 0 Explorer 0 Win Type - Total 3 Types 2/1/0/0/0/0/0/0/0/0 Lore% 84 Gallery% 84 Achievement% 62 Wizard Run 0 Options --------- Layout 1 ASCII 0 Keyboard 0 Movement Numpad Keybinds 0 Fullscreen 1 Font 24/Smallcaps Map View 50x35 Zoom Use 0% Tactical HUD 1 Map Filters NONE Filters NONE Steam 1 RUN: d67fce34-2d55-49fc-b71e-ccaffde42a1f